Cogmind - Beta 9.6 @@@ ROGUE MODE // 2020.08.28 @ 22:50:50 Player: eno Result: Destroyed by as-45929 with Assembled Blade Performance ------------- Evolutions (0) 0 Regions Visited (2) 400 Robots Destroyed (31) 155 Value Destroyed (687) 687 Prototype IDs (0) 0 Alien Tech Used (0) 0 Bonus (-114) -114 TOTAL SCORE: 1128 Bonus ------- Friendly Fire -114 Cogmind --------- Core Integrity 0/250 Matter 248/300 Energy 250/250 System Corruption 0% Temperature Cool (0) Movement Treading (180) Ox1 Location -10/Mines Parts ------- > --- POWER (1) -------- Ion Engine > --- PROPULSION (2) --- Light Treads Light Treads > --- UTILITY (2) ------ High-capacity Storage Unit High-capacity Storage Unit > --- WEAPON (2) ------- Medium Laser > --- INVENTORY (20) --- Ion Engine Ion Engine Light Ion Engine Light Nuclear Core Improved Aluminum Leg Improved Aluminum Leg Improved Aluminum Leg Improved Aluminum Leg Heat Sink Medium Storage Unit Medium Storage Unit Medium Matter Pod (100) High-capacity Matter Pod (200) Improved Sensor Array Improved Sensor Array Improved Sensor Array Improved Sensor Array Particle Gun Shotgun Shotgun Peak State ------------ > --- POWER ------------ Ion Engine > --- PROPULSION ------- Light Treads Light Treads > --- UTILITY ---------- High-capacity Storage Unit High-capacity Storage Unit > --- WEAPON ----------- Medium Laser Particle Gun > --- INVENTORY -------- Ion Engine Ion Engine Light Ion Engine Light Nuclear Core Improved Aluminum Leg Improved Aluminum Leg Improved Aluminum Leg Improved Aluminum Leg Heat Sink Medium Storage Unit Medium Storage Unit Medium Matter Pod Medium Matter Pod High-capacity Matter Pod Improved Sensor Array Improved Sensor Array Transport Network Coupler Propulsion Shielding Shotgun Shotgun [Rating: 11] Favorites ----------- Power Ion Engine Engine Ion Engine Propulsion Aluminum Leg Treads Light Treads Leg Aluminum Leg Utility High-capacity Storage Unit Device Improved Terrain Scanner Storage High-capacity Storage Unit Weapon EM Pulse Gun Energy Gun EM Pulse Gun Ballistic Gun Assault Rifle Launcher Grenade Launcher Special Weapon Mining Laser Build | -11 -10 -10 ------- Run | Scr Mat Min Slots Evolved . | . . . Power . | . . . Propulsion . | . . . Utility . | . . . Weapon . | . . . Parts Attached 33 | 8 24 1 Power 3 | 1 2 . Engine 3 | 1 2 . Core . | . . . Reactor . | . . . Propulsion 12 | 2 10 . Treads 6 | . 6 . Leg 6 | 2 4 . Wheel . | . . . Hover . | . . . Flight . | . . . Utility 4 | 2 2 . Device 1 | 1 . . Storage 3 | 1 2 . Processor . | . . . Hackware . | . . . Protection . | . . . Artifact . | . . . Weapon 14 | 3 10 1 Energy Gun 7 | 1 6 . Energy Cannon . | . . . Ballistic Gun 4 | 2 2 . Ballistic Cannon . | . . . Launcher 1 | . . 1 Special Weapon 2 | . 2 . Impact Weapon . | . . . Slashing Weapon . | . . . Piercing Weapon . | . . . Special Melee Weapon . | . . . Unidentified Prototypes . | . . . Parts Lost 10 | . 9 1 Power . | . . . Propulsion 3 | . 3 . Utility 1 | . 1 . Weapon 6 | . 5 1 Highest Loss Streak 5 | . 5 1 Average Slot Usage (%) 94 | . 93 100 Engine 14 | . 14 14 Treads 13 | . 13 28 Leg 14 | . 14 . Device 5 | . 5 . Storage 21 | . 21 28 Energy Gun 17 | . 17 14 Ballistic Gun 5 | . 5 . Naked Turns . | . . . Heaviest Build 74 | 12 74 74 Greatest Support 40 | 20 40 40 Greatest Overweight (x) 3 | . 3 1 Average Overweight (x) 1 | . 1 1 Largest Inventory Capacity 20 | 6 20 20 Average Capacity 14 | 5 14 20 Most Carried 20 | 6 20 20 Average Carried 12 | 3 13 20 Final Capacity 20 | 6 20 20 Final Carried 20 | 4 20 20 Class Distribution -------------------- 51% | Mutant 48% | Hauler-Mutant Dominant Class ---------------- Hauler-Mutant | -10/Materials Hauler-Mutant | -10/Mines Resources | -11 -10 -10 ----------- Run | Scr Mat Min Matter Collected 1048 | 280 755 13 Remotely . | . . . Salvage Created 846 | 109 721 16 Parts 65 | 16 47 2 Haulers Intercepted 2 | . 2 . Recyclers Shooed 1 | . 1 . Parts Field Recycled . | . . . Retrieved Matter . | . . . Parts Self-Destructed . | . . . Prevented . | . . . Kills | -11 -10 -10 ------- Run | Scr Mat Min Combat Hostiles Destroyed 20 | . 15 5 Melee 1 | . 1 . Guns 11 | . 10 1 Cannons 2 | . 2 . AOE 6 | . 2 4 Classes Destroyed 8 | 1 6 1 Tunneler 5 | 5 . . Hauler 2 | . 2 . Recycler 1 | . 1 . Mechanic 1 | . 1 . Watcher 2 | . 2 . Swarmer 5 | . 3 2 Grunt 12 | . 12 . Assembled 3 | . . 3 Best Kill Streak 7 | 4 7 5 Combat Bots Only 7 | . 7 5 Max Kills in Single Turn 2 | 1 2 2 Gunslinging 1 | . 1 . Exploded 2 | . 2 2 Melee 1 | . 1 . Uniques/NPCs Destroyed . | . . . Combat | -11 -10 -10 -------- Run | Scr Mat Min Damage Taken 1564 | . 1178 386 Core 252 | . 176 76 Absorbed by Shields . | . . . Core Remaining (%) 100 | 100 . . Volleys Fired 76 | 9 59 8 Largest 2 | 1 2 1 Hottest 115 | 40 115 50 Shots Fired 123 | 9 106 8 Gun 113 | 9 102 2 Cannon . | . . . Launcher 6 | . . 6 Special 4 | . 4 . Kinetic 29 | . 29 . Thermal 56 | . 54 2 Explosive 6 | . . 6 Electromagnetic 32 | 9 23 . Robot Hit Streak 15 | 3 15 2 Robot Miss Streak 2 | 1 2 2 Penetration Max . | . . . Secondary Targets 4 | . 4 . Max Gunslinging Chain 1 | . 1 . Shots Hit Robots 84 | 5 77 2 Core Hits 63 | 5 37 21 Critical Hits . | . . . Critical Kills . | . . . Critical Parts Destroyed . | . . . Melee Attacks . | . . . Impact . | . . . Slashing . | . . . Piercing . | . . . Sneak Attacks . | . . . Combat Hostiles . | . . . Follow-up Attacks . | . . . Damage Inflicted 1789 | 127 1063 599 Guns 912 | 83 817 12 Cannons . | . . . Explosions 799 | 44 168 587 Melee . | . . . Ramming 6 | . 6 . Kinetic 214 | . 214 . Thermal 679 | 44 532 103 Explosive 577 | . 81 496 Electromagnetic 313 | 83 230 . Impact . | . . . Slashing . | . . . Piercing . | . . . Highest Corruption . | . . . Average Corruption . | . . . Corruption Purged . | . . . Overload Shots . | . . . Overflow Damage 79 | . 57 22 Projectiles . | . . . Explosions 79 | . 57 22 Melee . | . . . Knockbacks . | . . . Impact . | . . . Kinetic . | . . . Secondary . | . . . Self-Inflicted Damage 211 | . 176 35 Shots 5 | . 4 1 Rammed 1 | . 1 . Targets Rammed 1 | . 1 . Kicked . | . . . Crushed . | . . . Highest Temperature 258 | . 258 20 Average Temperature 52 | . 53 10 Received Heat Transfer 423 | . 423 . Siege Activations . | . . . Robots Corrupted . | . . . Combat Hostiles . | . . . Parts Fried 1 | 1 . . Impact Corruptions . | . . . Robots Melted . | . . . Combat Hostiles . | . . . Parts Melted 1 | . 1 . Heat Transferred 1369 | 50 1132 187 Parts Sabotaged . | . . . Parts Stolen . | . . . Parts Stripped . | . . . Power Chain Reactions 2 | 1 1 . Missiles Intercepted . | . . . Alert | -11 -10 -10 ------- Run | Scr Mat Min Peak Influence 210 | 25 210 131 Average Influence 59 | 9 62 91 Maximum Alert Level 1 | . 1 . Low Security (%) 97 | 100 97 100 Level 1 2 | . 2 . Level 2 . | . . . Level 3 . | . . . Level 4 . | . . . Level 5 . | . . . High Security . | . . . Max Security . | . . . Squads Dispatched 4 | . 4 . Investigation 3 | . 3 . Extermination . | . . . Reinforcement 1 | . 1 . Assault . | . . . Garrison . | . . . Intercept . | . . . Construction Impeded . | . . . Haulers Reinforced . | . . . Stealth | -11 -10 -10 --------- Run | Scr Mat Min Distress Signals 3 | . 3 . Communications Jammed . | . . . Distress Signals . | . . . Times Spotted 56 | . 41 15 Peak Tracking Total 11 | . 10 11 Tactical Retreats 3 | . 3 . Traps | -11 -10 -10 ------- Run | Scr Mat Min Traps Triggered 2 | . 2 . Indirectly . | . . . Trap Hack Attempts . | . . . Triggered . | . . . Disarmed . | . . . Reprogrammed . | . . . Reused . | . . . Traps Extracted . | . . . Installed . | . . . Triggered . | . . . Machines | -11 -10 -10 ---------- Run | Scr Mat Min Machines Disabled 10 | . 6 4 Max in Single Turn 4 | . 2 4 Machines Sabotaged . | . . . Garrisons Compromised . | . . . Overloaded Fab Kills . | . . . Fab Network Shutdowns . | . . . Hacking | -11 -10 -10 --------- Run | Scr Mat Min Machines Accessed 8 | . 8 . Terminals 5 | . 5 . Fabricators . | . . . Repair Stations 1 | . 1 . Recycling Units 2 | . 2 . Scanalyzers . | . . . Garrison Access . | . . . Total Hacks 28 | . 28 . Successful 21 | . 21 . Failed 7 | . 7 . Catastrophic 1 | . 1 . Database Lockouts . | . . . Manual 19 | . 19 . Terminals 18 | . 18 . Fabricators . | . . . Repair Stations 6 | . 6 . Recycling Units 4 | . 4 . Scanalyzers . | . . . Garrison Access . | . . . Terminal Hacks 7 | . 7 . Terminal Index 1 | . 1 . Unreport Threat 3 | . 3 . Patrol Status 1 | . 1 . Recall Reinforcements 1 | . 1 . Hauler Manifests 1 | . 1 . Fabricator Hacks . | . . . Repair Station Hacks 6 | . 6 . Scan Component 3 | . 3 . Repair 3 | . 3 . Recycling Unit Hacks 4 | . 4 . Report Inventory 2 | . 2 . Retrieve Components 2 | . 2 . Scanalyzer . | . . . Garrison Access Hacks . | . . . Unauthorized Hacks 4 | . 4 . Terminals 4 | . 4 . Track 1 | . 1 . Botnet 3 | . 3 . Fabricators . | . . . Repair Stations . | . . . Recycling Units . | . . . Scanalyzers . | . . . Garrison Access . | . . . Data Cores Recovered . | . . . Used . | . . . Hacking Detections 6 | . 6 . Full Trace Events 1 | . 1 . Feedback Events . | . . . Feedback Blocked . | . . . Robot Schematics Acquired . | . . . Robots Built . | . . . Matter . | . . . Time . | . . . Total Robot Build Rating . | . . . Part Schematics Acquired . | . . . Parts Built . | . . . Matter . | . . . Time . | . . . Total Part Build Rating . | . . . Parts Repaired 3 | . 3 . Time 90 | . 90 . Parts Recycled . | . . . Recycled Matter . | . . . Retrieved Matter . | . . . Retrieved Components 19 | . 19 . Parts Scanalyzed . | . . . Part Schematics Acquired . | . . . Parts Damaged . | . . . Bothacking | -11 -10 -10 ------------ Run | Scr Mat Min Used RIF Installer . | . . . Robots Hacked . | . . . Non-combat . | . . . Combat . | . . . Robot Hacks Applied . | . . . Relay Couplers Released . | . . . Robots Rewired . | . . . Allies Hacked . | . . . Hacks Repelled . | . . . Allies | -11 -10 -10 -------- Run | Scr Mat Min Total Allies . | . . . Largest Group . | . . . Highest-Rated Group . | . . . Highest-Rated Ally . | . . . Total Orders . | . . . Ally Attacks . | . . . Total Damage . | . . . Kills . | . . . Allies Corrupted . | . . . Allies Melted . | . . . Intel | -11 -10 -10 ------- Run | Scr Mat Min Robot Analysis Total . | . . . Derelict Logs Recovered . | . . . Drone Launches . | . . . Drone Recoveries . | . . . Exploration | -11 -10 -10 ------------- Run | Scr Mat Min Turns Passed 2652 | 171 2458 23 Spaces Moved 922 | 112 808 2 Core 8 | 8 . . Treads 383 | . 381 2 Legs 531 | 104 427 . Wheels . | . . . Hover . | . . . Flight . | . . . Fastest Speed 50 | 50 120 180 Average Speed 172 | 115 180 180 Slowest Speed 220 | 120 220 180 Overloaded Moves . | . . . Propulsion Burnouts . | . . . Robots Hopped . | . . . Cave-ins Triggered . | . . . Exploration Rate (%) 35 | 5 95 6 Regions Visited 2 Branch Regions 1 Pre-discovered Areas . | . . . Known Exits Taken . | . . . Unknown Exits Taken 2 | 1 1 . Scrap Searched . | . . . Spaces Dug . | . . . Terrain Destroyed 87 | 3 45 39 Melee . | . . . Projectile 1 | . 1 . AOE 86 | 3 44 39 Actions | -11 -10 -10 --------- Run | Scr Mat Min Total 1859 | 143 1703 13 Wait 764 | 7 755 2 Move 920 | 111 807 2 Hop . | . . . Pick Up 44 | 7 37 . Fast Attach 12 | 4 8 . Attach 12 | 4 8 . Detach 2 | 1 1 . Swap 9 | . 8 1 Drop 19 | . 19 . Fire 76 | 9 59 8 Melee . | . . . Ram . | . . . Kick . | . . . Crush 1 | . 1 . Escape Stasis . | . . . Rewire . | . . . Trap . | . . . Miscellaneous . | . . . Route ------- -11/Scrapyard -10/Materials (discovered 5 exits: [*Mat x3] / [*Min x2]) -10/Mines History --------- Turn | Location | Event 3 | -11/Scrapyard | Discovered new exit (range 15) 172 | -11/Scrapyard | Entered Materials 316 | -10/Materials | Build established: Mutant 1056 | -10/Materials | Core integrity fell below 50% 1109 | -10/Materials | Destroyed 7 combat bots 1117 | -10/Materials | Lost 5 parts (3n2w) 1183 | -10/Materials | Discovered new exit (range 16) 1256 | -10/Materials | Lost 3 parts (1u2w) 1367 | -10/Materials | Discovered new exit (range 14) 1588 | -10/Materials | Discovered new exit (range 13) 1670 | -10/Materials | Build established: Hauler-Mutant 1671 | -10/Materials | Discovered new exit (range 10) 1939 | -10/Materials | Discovered new exit (range 16) 2116 | -10/Materials | Repaired Med. Laser 2144 | -10/Materials | Repaired Lgt. Treads 2183 | -10/Materials | Repaired Lgt. Nuclear Core 2630 | -10/Materials | Entered Mines 2631 | -10/Mines | Assembled infested the area 2636 | -10/Mines | Assisted by a Guerilla fighting off Assembled 2652 | -10/Mines | Core integrity fell below 20% 2653 | -10/Mines | Destroyed by as-45929 with Assembled Blade Last Messages --------------- I've been tracking a group of Assembled to figure out where they're coming from, and they're closing on this area, come on!" 02636_ S-10 Pest destroyed. 02638_ The unstable cave ceiling collapses. 02638_ Acquired 3 matter. 02640_ Acquired 10 matter. 02642_ Core Extractor disabled. 02642_ Plasma Injector explodes. 02642_ Core Extractor disabled. 02642_ as-50237 destroyed. 02642_ Laser Drill disabled. 02644_ as-03940 destroyed. 02644_ as-87618 destroyed. 02646_ Destroyed Asb. Hover Unit. 02649_ HV Slug penetrates Wall. 02651_ Grenade Launcher destroyed. 02651_ HV Slug penetrates as-64212. 02651_ as-64212 suffers critical hit. 02651_ as-64212 knocked back. 02651_ HV Slug penetrates as-64212. Map ----- +----------------------------------------------------+ | | | | | | | | | | | | | | | | | | | | | | | | | | | | | | | | | ???????????????????????????? | | ???????????????????????????? | | ???????????????????????????? | | ???????????????????????????? | | ?????????####??????????????? | | ???????? ##?????????????? | | ??##### #####?????????? | | ## # ; ????????? | | # =%a #??????????? | | # @a #????????????? | | ## aa #????????????? | | # a a a a ?????????? | | # aa h ?????????? | | # ## ?????????? | | ## #???????????? | | ?# """ #???????????? | | ?# #???????????? | | ?####### #???????????? | | ????????########???????????? | | ???????????????????????????? | | ???????????????????????????? | | ???????????????????????????? | | ???????????????????????????? | | ???????????????????????????? | | ???????????????????????????? | | ???????????????????????????? | | ???????????????????????????? | | ???????????????????????????? | | ???????????????????????????? | | ???????????????????????????? | | ???????????????????????????? | | ???????????????????????????? | | ???????????????????????????? | | ???????????????????????????? | +----------------------------------------------------+ Best States ------------- Heat Dissipation 25 Energy Generation 10 Energy Capacity 250 Matter Stores 300 Matter Capacity 300 Sight Range 16 Terrain Scan Range 16 Terrain Scan Density 10 Evasion (%) 40 Recoil Reduction 2 Item Schematics ----------------- None Robot Schematics ------------------ None Fabricated ------------ Nothing Alien Tech Used ----------------- None Achievements -------------- None Challenges ------------ None Game ------ Seed WarpCannonReconfigurator Manual? 0 Play Time 00:19:47 Cumulative 102.5 hours Start 2020.08.28 @ 21:36:06 End 2020.08.28 @ 22:50:50 Sessions 2 Manual Loads 0 Difficulty Rogue Special Mode None Game No. 63 Rogue 63 Adventurer 0 Explorer 0 Win Type - Total 1 Types 1/0/0/0/0/0/0 Lore% 30 Gallery% 52 Achievement% 41 Wizard Run 0 Options --------- ASCII 0 Keyboard 0 Movement Mouse Keybinds 0 Fullscreen 2 Font 18/TerminusBold Map View 76x50 Tactical HUD 1 Map Filters NONE Filters NONE Steam 1 RUN: 0bbe5f05-1f28-4e4b-8d1f-839b54d4d462